[Event "SixDays Budapest January-IMA 2023"]
[Site "Budapest"]
[Date "2023.01.26"]
[Round "6.1"]
[White "Ongut, Tamas Gunes"]
[Black "Orso, Miklos"]
[Result "1-0"]
[ECO "B31"]
[WhiteElo "2340"]
[BlackElo "2256"]
[Annotator "TA"]
[PlyCount "77"]
[EventDate "2023.01.23"]
[EventType "tourn"]
[EventCountry "HUN"]
[SourceTitle "playchess.com"]
[Source "ChessBase"]
[SourceQuality "1"]
[TimeControl "5400+30"]

{[%evp 9,77,11,20,6,1,11,26,9,10,-19,-15,-17,-8,-22,-23,-18,0,-12,0,0,8,10,18,18,25,29,72,63,64,54,119,95,110,119,108,105,141,152,154,151,144,138,154,102,239,219,213,214,238,238,370,356,428,425,395,306,638,324,983,981,908,964,1685,1618,1531,1444,1914,1625,1489,1404]} 1. e4 {[%emt 0:00:33]} c5 {[%emt 0:00:59]} 2. Nf3 {[%emt 0:00:08]} Nc6 {[%emt 0:00:05]} 3. Bb5 {[%emt 0:00:08]} g6 {[%emt 0:00:09]} 4. O-O {[%emt 0:04:07]} Bg7 {[%emt 0:01:06]} 5. Re1 {[%emt 0:00:06]} e5 {[%emt 0:02:51]} 6. a3 {[%emt 0:00:15][%cal Ob2b4] B31: Sicilian: 2...Nc6 3 Bb5 g6.} Nge7 {[%emt 0:02:11]} 7. b4 {[%emt 0:00:15]} d6 {[%emt 0:03:23]} 8. bxc5 {[%emt 0:02:46] White has an edge.} dxc5 {[%emt 0:00:08]} 9. Nc3 {[%emt 0:02:55]} O-O {[%emt 0:02:34]} 10. Bc4 {[%emt 0:03:37]} Nd4 {[%emt 0:05:55] [#]} 11. h3 $146 {[%emt 0:05:38] Dodges Bg4} ({Predecessor:} 11. Nxd4 cxd4 12. Ne2 Be6 13. Bxe6 fxe6 14. d3 Rc8 15. Bd2 Nc6 16. Qb1 Rf7 17. Qb3 {0-1 Johannessen,S (2317)-Sawadkuhi,M (2258) EU-chT Seniors 06th 2004 (2.1)}) 11... Be6 {[%emt 0:02:25]} 12. Bxe6 {[%emt 0:09:29]} Nxe6 {[%emt 0:00:27]} 13. d3 {[%emt 0:00:53]} Qd7 {[%emt 0:01:47]} 14. Rb1 {[%emt 0:01:19]} Rfd8 {[%emt 0:03:47]} 15. a4 {[%emt 0:03:47]} Nd4 {[%emt 0:15:20]} 16. Nd2 {[%emt 0:00:08][%cal Bf3d2,Bd2c4,Bc4e3,Be3d5][%mdl 32]} Rac8 {[%emt 0:08:22]} 17. Nc4 {[%emt 0:00:45]} Rc6 {[%emt 0:14:17]} 18. Bg5 {[%emt 0:02:28]} f6 {[%emt 0:00:24]} 19. Bd2 {[%emt 0:00:07]} g5 {[%emt 0:03:16]} (19... Ra6 $14) 20. Ne3 {[%emt 0:06:19]} b6 {[%emt 0:09:45]} 21. Ncd5 {[%emt 0:07:48]} Nxd5 {[%emt 0:00:43]} 22. Nxd5 {[%emt 0:03:03]} h6 {[%emt 0:05:07]} 23. a5 {[%emt 0:01:21]} Rb8 {[%emt 0:04:20]} 24. axb6 {[%emt 0:00:35]} axb6 {[%emt 0:00:02]} 25. c3 {[%emt 0:00:18]} Ne6 {[%emt 0:00:16]} 26. Qa4 {[%emt 0:00:10] White is more active.} ({White should play} 26. c4) 26... Kh7 {[%emt 0:00:55] [#] A mistake that costs the game.} (26... Rd6 $16 27. Qa2 Qd8) 27. Rxb6 $1 {[%emt 0:01:25][%mdl 512]} Rbxb6 {[%emt 0:01:24]} 28. Nxb6 {[%emt 0:00:09][%mdl 64] Pin} Qb7 {[%emt 0:03:11]} 29. Nd5 {[%emt 0:02:31]} c4 {[%emt 0:00:17]} (29... Nc7 $142 30. Be3 Bf8) 30. dxc4 $18 {[%emt 0:00:23]} Nc5 {[%emt 0:00:17]} 31. Qb5 {[%emt 0:00:27]} Rc8 {[%emt 0:02:18]} 32. Ra1 {[%emt 0:06:49][%cal Be1a1,Ba1a7,Ba7e7][%mdl 32]} Qf7 $2 {[%emt 0:01:14]} (32... Qxb5 33. cxb5 Nxe4) 33. Qb6 {[%emt 0:01:49] Hoping for Be3.} Nxe4 $2 {[%emt 0:01:09]} (33... Qb7 34. Nxf6+ Kh8 35. Qxb7 Nxb7) 34. Ra7 {[%emt 0:00:14] White is clearly winning.} Qf8 {[%emt 0:01:06] [#] Black is weak on the light squares} 35. Qe6 $1 {[%emt 0:02:25]} Nxd2 {[%emt 0:01:17]} (35... Rb8 36. Qf5+) 36. Qf5+ {[%emt 0:03:07]} Kh8 {[%emt 0:01:03]} 37. Ne7 {[%emt 0:00:06] Ng6+ would kill now.} Qxe7 {[%emt 0:02:09]} 38. Rxe7 {[%emt 0:00:20]} Rb8 {[%emt 0:00:21]} 39. g4 {[%emt 0:01:10] Weighted Error Value: White=0.22 (precise) /Black=0.41} 1-0

[Event "SixDays Budapest January-IMA 2023"]
[Site "Budapest"]
[Date "2023.01.26"]
[Round "6.2"]
[White "Ihnat, Marek"]
[Black "Baski, Barnabas"]
[Result "1-0"]
[ECO "C70"]
[WhiteElo "2138"]
[BlackElo "2188"]
[Annotator "TA"]
[PlyCount "81"]
[EventDate "2023.01.23"]
[EventType "tourn"]
[EventCountry "HUN"]
[SourceTitle "playchess.com"]
[Source "ChessBase"]
[SourceQuality "1"]
[TimeControl "5400+30"]

{[%evp 10,81,44,36,35,43,39,42,30,26,34,34,33,29,27,19,40,20,44,44,71,71,71,52,129,82,91,109,112,120,104,102,108,106,379,357,382,385,394,395,366,356,348,285,275,281,343,337,362,323,389,370,375,372,448,365,455,454,722,714,908,984,962,952,1323,1244,935,910,5701,5685,5221,4941,12828,10858]} 1. e4 {[%emt 0:00:06]} e5 {[%emt 0:00:08]} 2. Nf3 {[%emt 0:00:10]} Nc6 {[%emt 0:00:09]} 3. Bb5 {[%emt 0:00:16]} a6 {[%emt 0:00:10]} 4. Ba4 {[%emt 0:00:08]} Bc5 {[%emt 0:00:20]} 5. O-O {[%emt 0:00:45]} Nge7 {[%emt 0:00:17]} 6. c3 {[%emt 0:00:45]} Ng6 {[%emt 0:00:25] C64: Ruy Lopez: Classical Defence (3...Bc5) except 4 0-0 Nf6.} 7. d4 {[%emt 0:02:49]} Ba7 {[%emt 0:00:15]} 8. Bg5 {[%emt 0:07:15]} f6 {[%emt 0:00:15] White is slightly better.} 9. Be3 {[%emt 0:00:28]} O-O {[%emt 0:00:21]} 10. Re1 {[%emt 0:02:49]} Kh8 {[%emt 0:03:32]} 11. Nbd2 $36 {[%emt 0:05:18][%cal Bb1d2,Bd2f1,Bf1g3][%mdl 2080] Black is under pressure.} d6 {[%emt 0:01:29]} 12. h3 {[%emt 0:02:31]} Bd7 {[%emt 0:00:17]} 13. Nf1 {[%emt 0:01:15]} Qe8 {[%emt 0:01:51][%cal Oc6d4]} 14. Bc2 {[%emt 0:00:19]} Nf4 {[%emt 0:01:51] [#]} 15. Ng3 $146 {[%emt 0:05:16]} ({Predecessor:} 15. Bxf4 exf4 16. N3h2 g5 17. Qd3 Qh5 18. Bd1 Qg6 19. Bg4 Bxg4 20. hxg4 Rae8 21. Nd2 {0-1 Lagno,K (2547)-Vaishali,R (2442) Speed Chess (Women) blitz 2022 (3.36)}) 15... g5 {[%emt 0:07:14]} 16. Qd2 {[%emt 0:03:36]} h5 {[%emt 0:18:01]} (16... Ne7 $14) 17. Rad1 {[%emt 0:03:43]} (17. h4 $142) 17... h4 $16 {[%emt 0:04:44]} 18. Nf5 {[%emt 0:11:18]} Bxf5 {[%emt 0:02:41]} 19. exf5 {[%emt 0:00:10] Black must now prevent Bxf4.} Qh5 {[%emt 0:00:33][%cal Of4h3]} 20. Nh2 {[%emt 0:02:09]} exd4 {[%emt 0:14:06]} 21. cxd4 {[%emt 0:01:44]} (21. Bxf4 {with more complications.} gxf4 22. Re4 dxc3 23. Qxc3 Qh6 24. Bb3) 21... Nxd4 $2 {[%emt 0:02:28][%mdl 8192] Black cannot hold the game after this.} 22. Bxd4 $18 {[%emt 0:04:03]} Bxd4 {[%emt 0:00:17]} 23. Qxd4 {[%emt 0:00:35]} Ne2+ {[%emt 0:00:05] [#]} 24. Rxe2 $1 {[%emt 0:00:09]} Qxe2 {[%emt 0:00:05]} 25. Bb3 {[%emt 0:01:04] Strongly threatening Nf3.} c5 {[%emt 0:08:08]} 26. Qg4 {[%emt 0:04:26]} ({Not} 26. Qxd6 c4 $11) 26... Qxg4 {[%emt 0:00:17]} 27. Nxg4 {[%emt 0:00:19]} Rad8 {[%emt 0:00:30]} 28. Bd5 {[%emt 0:05:52]} b5 {[%emt 0:01:05]} 29. Re1 {[%emt 0:02:09] [#] And now Re7 would win.} Rd7 {[%emt 0:07:26] Prevents Re7} 30. Re6 {[%emt 0:01:38]} Kg7 {[%emt 0:00:06]} 31. Kf1 {[%emt 0:01:42]} c4 {[%emt 0:01:20]} 32. Ke2 {[%emt 0:00:35]} Rff7 {[%emt 0:02:03]} 33. Ke3 {[%emt 0:00:34] White is clearly winning.} Rfe7 {[%emt 0:00:24]} (33... Rd8 $142 34. f4 gxf4+ 35. Kxf4 a5) 34. Nxf6 {[%emt 0:03:50]} Rxe6+ {[%emt 0:00:06]} 35. fxe6 {[%emt 0:00:28]} Re7 {[%emt 0:00:16]} 36. Ne4 {[%emt 0:00:07][%csl LRd6,LRg5]} Kg6 {[%emt 0:00:24]} 37. Nxd6 {[%emt 0:00:21]} Kf6 {[%emt 0:00:16]} 38. Ke4 {[%emt 0:00:34]} Ra7 {[%emt 0:00:39]} 39. Nf5 {[%emt 0:01:10]} Rc7 {[%emt 0:00:23]} 40. e7 {[%emt 0:00:27]} Rc8 {[%emt 0:00:41]} 41. Bb7 {[%emt 0:01:08] Weighted Error Value: White=0.12 (very precise) /Black=0.35} 1-0

[Event "SixDays Budapest January-IMA 2023"]
[Site "Budapest"]
[Date "2023.01.26"]
[Round "6.3"]
[White "Leszko, Bence"]
[Black "Magold, Filip"]
[Result "0-1"]
[ECO "B40"]
[WhiteElo "2298"]
[BlackElo "2230"]
[Annotator "TA"]
[PlyCount "124"]
[EventDate "2023.01.23"]
[EventType "tourn"]
[EventCountry "HUN"]
[SourceTitle "playchess.com"]
[Source "ChessBase"]
[SourceQuality "1"]
[TimeControl "5400+30"]

{[%evp 9,124,3,18,10,17,0,4,-33,-49,-32,20,6,12,18,16,-3,-3,-18,2,0,8,7,41,-20,0,-3,-4,-27,-3,5,0,-33,-22,-25,-22,-14,-17,-18,-14,-14,-18,0,0,0,0,-33,-33,-34,-32,-18,-20,-31,-31,-34,0,-8,-8,-108,-56,-220,-214,-220,-220,-213,-213,-229,-228,-210,-188,-254,-191,-189,-191,-421,-421,-421,-393,-2068,-2067,-1731,-1631,-1139,-887,-1709,-1471,-6087,-5360,-5360,-2453,-29973,-29974,-29974,-29975,-29975,-29973,-29974,-29972,-29973,-29975,-29974,-29975,-29975,-29975,-29975,-29976,-29978,-29979,-29979,-29979,-29981,-29982,-29988,-29983,-29988,-29989,-29994,-29992]} 1. e4 {[%emt 0:04:33]} c5 {[%emt 0:00:07]} 2. Nf3 {[%emt 0:00:06]} e6 {[%emt 0:00:05]} 3. g3 {[%emt 0:01:46]} Nc6 {[%emt 0:01:12]} 4. Bg2 {[%emt 0:00:11]} Nf6 {[%emt 0:00:15]} 5. Qe2 {[%emt 0:00:18]} e5 {[%emt 0:00:07]} 6. O-O {[%emt 0:00:24] B40: Sicilian: 2...e6, Unusual lines.} Be7 {[%emt 0:00:10]} 7. c3 {[%emt 0:00:29][%cal Od2d4]} O-O {[%emt 0:00:22]} 8. d4 {[%emt 0:04:00] The position is equal.} cxd4 {[%emt 0:00:48]} 9. cxd4 {[%emt 0:00:07]} d5 {[%emt 0:01:13]} (9... Nxd4 10. Nxd4 exd4 11. e5 $14) ({Black should play} 9... exd4 $15 10. e5 Ne8) 10. exd5 $11 {[%emt 0:12:07]} Nxd4 {[%emt 0:00:35]} 11. Nxd4 {[%emt 0:00:08]} (11. Qxe5 $2 Nc2 12. b3 Re8 $17) 11... exd4 {[%emt 0:00:04]} 12. Qc4 {[%emt 0:02:31]} (12. Qe5 $5 {[%cal Re5d4]}) 12... Qb6 $1 {[%emt 0:06:34] [#]} 13. Bf4 $146 {[%emt 0:07:45]} (13. Nd2 $5 {[%cal Rd2b3]}) ({Predecessor:} 13. Re1 Bb4 14. Bd2 Bxd2 15. Nxd2 Bf5 16. Nb3 d3 17. Nc5 d2 18. Red1 Qxb2 19. Qf4 {0-1 Lu,S (2570)-Bai,J (2518) CHN-chT China 2015 (2.6)}) 13... Bd7 {[%emt 0:12:02]} 14. Qb3 {[%emt 0:01:35]} Bc5 {[%emt 0:15:21]} 15. Na3 {[%emt 0:05:57]} Rfd8 {[%emt 0:12:47]} 16. Bg5 {[%emt 0:08:48]} (16. Nc4 $14 Qa6 17. a4) 16... Rac8 {[%emt 0:14:12]} 17. Qxb6 {[%emt 0:06:21]} Bxb6 {[%emt 0:00:30]} 18. Rfd1 {[%emt 0:02:14]} h6 {[%emt 0:03:08]} (18... Bg4 $5 {[%cal Rg4d1]}) 19. Bxf6 {[%emt 0:00:43]} gxf6 {[%emt 0:00:01]} 20. b3 {[%emt 0:06:53] White is weak on the dark squares} Bg4 {[%emt 0:05:47]} 21. Rd2 {[%emt 0:00:59]} Bf5 {[%emt 0:04:28]} 22. Nc4 {[%emt 0:00:10] Prevents Ba5. Nxb6 would be deadly.} Bc5 {[%emt 0:01:09][%cal Bb6c5,Bc5b4,Bb4c3][%mdl 32] [#] And now ...b5 would win.} 23. a4 {[%emt 0:01:56]} Bb4 {[%emt 0:01:04] ...Rxc4 is the strong threat.} 24. Rxd4 {[%emt 0:00:15]} Bc3 $1 {[%emt 0:00:08][%csl LRa1,LRd4] This pair of bishops is nice.} 25. Rf4 {[%emt 0:01:27]} Bxa1 {[%emt 0:00:08]} 26. Rxf5 {[%emt 0:00:01]} Rc5 {[%emt 0:01:30]} 27. Rf4 {[%emt 0:04:02]} b5 {[%emt 0:01:43]} 28. Ne3 {[%emt 0:00:45]} Be5 $36 {[%emt 0:02:51][%mdl 2048] Black has good play.} 29. Rg4+ {[%emt 0:00:36]} Kf8 {[%emt 0:01:05]} 30. Rh4 {[%emt 0:02:02]} bxa4 {[%emt 0:02:27]} 31. bxa4 {[%emt 0:00:26]} Rb8 {[%emt 0:02:16]} (31... f5 $5) 32. Bf1 {[%emt 0:02:29]} Rb2 {[%emt 0:01:53]} 33. a5 {[%emt 0:13:12]} (33. Rxh6 $11 {remains equal.} Bd4 34. Nf5 Bxf2+ 35. Kh1) 33... Rd2 {[%emt 0:02:46] Black is more active.} ({Much weaker is} 33... Rxa5 $6 34. Nc4 Ra4 35. Nxb2 Rxh4 36. gxh4 $11) (33... Bc3 $17 34. a6 Be1) 34. a6 $2 {[%emt 0:04:41] [#] White does not recover from this.} (34. Rxh6 $15 Kg8 35. Nf5) 34... Bd4 $1 $19 {[%emt 0:02:52]} 35. Rxh6 {[%emt 0:01:17]} Bxe3 {[%emt 0:01:15]} 36. fxe3 {[%emt 0:00:06][%mdl 4096] Endgame KRR-KRB} Kg7 {[%emt 0:00:05]} ({Worse is} 36... Rcxd5 37. Rxf6 Rc2 38. Rf4 $17) 37. Rh4 {[%emt 0:01:14]} Rcxd5 {[%emt 0:00:30]} ({Stronger than} 37... Rdxd5 38. Rg4+ Rg5 39. Rf4) 38. Rg4+ {[%emt 0:00:21]} Kh6 {[%emt 0:00:56]} 39. Rb4 {[%emt 0:02:06]} (39. Rf4 {was worth a try.}) 39... Ra5 {[%emt 0:01:34]} 40. Rf4 {[%emt 0:02:16]} Kg6 {[%emt 0:00:45]} 41. Rf2 $2 {[%emt 0:00:55]} (41. Rg4+ Kf5 42. Rf4+ Ke5 43. g4) 41... Raa2 {[%emt 0:00:38]} 42. Rxd2 {[%emt 0:02:05]} Rxd2 {[%emt 0:00:02] KR-KB} 43. Bc4 $2 {[%emt 0:00:12]} (43. e4 f5 44. Bg2) 43... Kf5 {[%emt 0:01:18] Hoping for ...Ke4.} 44. Bxf7 {[%emt 0:00:11]} Ke4 {[%emt 0:00:04]} 45. Be8 {[%emt 0:00:41]} Rd6 {[%emt 0:00:48]} 46. Bb5 {[%emt 0:00:22]} Kf3 {[%emt 0:00:03]} 47. e4 {[%emt 0:00:10]} Rd1+ {[%emt 0:00:04]} 48. Bf1 {[%emt 0:00:04]} Ra1 {[%emt 0:00:29]} (48... Rb1 $142 49. g4 Ra1) 49. h4 {[%emt 0:00:34]} Kxg3 {[%emt 0:00:18] Black mates.} 50. h5 {[%emt 0:00:01]} Ra2 {[%emt 0:00:53]} 51. Bc4 {[%emt 0:00:22]} Rc2 {[%emt 0:00:04]} 52. Bb5 {[%emt 0:00:14]} Rc1+ {[%emt 0:01:01]} 53. Bf1 {[%emt 0:00:02]} Re1 {[%emt 0:00:11]} 54. h6 {[%emt 0:00:30]} Rxe4 {[%emt 0:00:11]} 55. h7 {[%emt 0:00:07]} Rh4 {[%emt 0:00:05]} 56. Bd3 {[%emt 0:00:05]} Kg4 {[%emt 0:00:04]} 57. Kf2 {[%emt 0:01:00]} f5 {[%emt 0:00:08][%cal Bf6f5,Bf5f4][%mdl 32]} 58. Bc4 {[%emt 0:00:05]} Rxh7 {[%emt 0:00:06]} 59. Bd5 {[%emt 0:00:07]} Rh2+ {[%emt 0:00:11]} 60. Kf1 {[%emt 0:00:14]} Kg3 {[%emt 0:00:07]} 61. Bb7 {[%emt 0:00:06]} f4 {[%emt 0:00:08]} 62. Kg1 {[%emt 0:00:13]} Ra2 {[%emt 0:00:16] Weighted Error Value: White=0.61/Black=0.19 (very precise)} 0-1

[Event "SixDays Budapest January-IMA 2023"]
[Site "Budapest"]
[Date "2023.01.26"]
[Round "6.4"]
[White "Polyik, Peter"]
[Black "Heimisson, Hilmir Freyr"]
[Result "1/2-1/2"]
[ECO "C02"]
[WhiteElo "2323"]
[BlackElo "2321"]
[Annotator "TA"]
[PlyCount "54"]
[EventDate "2023.01.23"]
[EventType "tourn"]
[EventCountry "HUN"]
[SourceTitle "playchess.com"]
[Source "ChessBase"]
[SourceQuality "1"]
[TimeControl "5400+30"]

{[%evp 11,54,-10,-14,-18,-17,-29,-16,-27,-47,-52,-48,-81,0,-20,0,0,0,0,0,0,0,0,0,0,0,0,0,0,0,0,0,0,0,0,0,0,0,0,0,0,0,0,0,0,0]} 1. e4 {[%emt 0:00:02]} e6 {[%emt 0:00:44]} 2. d4 {[%emt 0:00:07]} d5 {[%emt 0:00:05]} 3. e5 {[%emt 0:00:06]} c5 {[%emt 0:00:40]} 4. c3 {[%emt 0:00:06]} Nc6 {[%emt 0:01:12]} 5. Nf3 {[%emt 0:00:08]} Qb6 {[%emt 0:01:42]} 6. Bd3 {[%emt 0:00:10]} cxd4 {[%emt 0:01:43]} 7. O-O $1 {[%emt 0:00:10][%mdl 4] now scores much better than the old 7.cxd4. C02: French: Advance Variation.} Bd7 {[%emt 0:01:08]} 8. Re1 {[%emt 0:00:11]} Nge7 {[%emt 0:01:40]} 9. h4 {[%emt 0:00:40]} Rc8 {[%emt 0:03:22]} 10. h5 {[%emt 0:06:38]} h6 {[%emt 0:02:12]} 11. Na3 {[%emt 0:12:55] [#]} Nf5 $146 {[%emt 0:04:31]} (11... dxc3 $17 {White must now prevent ...Nb4.} 12. bxc3 a6) ({Predecessor:} 11... a6 12. Nc2 dxc3 13. bxc3 Na5 14. Be3 Qc7 15. Rb1 Nc4 16. Bxc4 Qxc4 17. Rxb7 Nf5 {1-0 Puranik,A (2580)-Haria,R (2440) Riga Tech op-A 2021 (3)}) 12. g4 {[%emt 0:10:28] The position is equal.} Nfe7 {[%emt 0:03:38]} (12... dxc3 $5 13. bxc3 Qa5 $15) 13. Nb5 {[%emt 0:01:21] [#] Nd6+ would be deadly.} Nxe5 $1 {[%emt 0:02:22]} 14. Nxe5 {[%emt 0:00:06]} Bxb5 {[%emt 0:00:18]} 15. Qf3 $1 {[%emt 0:00:11]} (15. Bxb5+ Qxb5 16. cxd4 Nc6 $17) 15... f6 {[%emt 0:01:08]} (15... dxc3 $2 16. Bxb5+ (16. Nxf7 Bxd3 17. Nxh8 cxb2 $11) 16... Qxb5 17. Qxf7+ Kd8 18. Qxe6 $18) 16. Bg6+ {[%emt 0:02:38]} Nxg6 {[%emt 0:00:18]} 17. Nxg6 {[%emt 0:00:05]} Rg8 {[%emt 0:00:47] Hoping for ...dxc3.} 18. Bxh6 $1 {[%emt 0:10:45][%mdl 64] [#] Deflection} gxh6 {[%emt 0:00:03]} 19. Qxf6 {[%emt 0:00:13]} Bd7 {[%emt 0:00:37] And now ...dxc3 would win.} 20. Re5 $1 {[%emt 0:03:54] Threatens to win with Rae1.} dxc3 {[%emt 0:19:30]} 21. Rae1 {[%emt 0:02:22][%cal Re5e6] Rxe6+ is the strong threat. Some like it hot} c2 {[%emt 0:00:06]} (21... Qxb2 {is a self mate.} 22. Rxe6+ (22. Rxd5 Rc6 $14) 22... Bxe6 23. Rxe6+ (23. Qxe6+ Kd8 $11) 23... Kd7 24. Qf7+ Kd8 25. Re8#) 22. Nxf8 $1 {[%emt 0:00:16]} Rxf8 {[%emt 0:00:10]} (22... c1=R $2 23. Nxe6 Rxe1+ 24. Rxe1 Rxg4+ 25. Kh1 $18) 23. Rxe6+ {[%emt 0:00:05]} Qxe6 {[%emt 0:00:08]} 24. Rxe6+ {[%emt 0:00:09]} Bxe6 {[%emt 0:00:05]} 25. Qxe6+ $11 {[%emt 0:00:04] KQ-KRR} Kd8 {[%emt 0:00:04]} 26. Qd6+ {[%emt 0:00:04]} Ke8 {[%emt 0:00:03]} 27. Qe6+ {[%emt 0:00:06]} Kd8 {[%emt 0:00:04] An exciting game.   Weighted Error Value: White=0.04 (flawless) /Black=0.08 (flawless)} 1/2-1/2

[Event "SixDays Budapest January-IMA 2023"]
[Site "Budapest"]
[Date "2023.01.26"]
[Round "6.5"]
[White "Taragan, Uri"]
[Black "Szeberenyi, Adam"]
[Result "0-1"]
[ECO "D35"]
[WhiteElo "1733"]
[BlackElo "2331"]
[Annotator "TA"]
[PlyCount "72"]
[EventDate "2023.01.23"]
[EventType "tourn"]
[EventCountry "HUN"]
[SourceTitle "playchess.com"]
[Source "ChessBase"]
[SourceQuality "1"]
[TimeControl "5400+30"]

{[%evp 12,72,19,19,35,22,24,4,4,-19,0,0,0,0,50,44,60,49,95,92,93,110,109,106,162,80,125,38,31,35,26,0,0,3,-2,-137,6,-138,-146,-210,-208,-536,-539,-769,-783,-772,-767,-672,-492,-462,-401,-381,-388,-738,-728,-1367,-1358,-29982,-29983,-29984,-29984,-29984,-29985]} 1. d4 {[%emt 0:00:03]} Nf6 {[%emt 0:00:28]} 2. c4 {[%emt 0:00:14]} e6 {[%emt 0:00:05]} 3. Nc3 {[%emt 0:00:27]} d5 {[%emt 0:00:05]} 4. cxd5 {[%emt 0:00:13]} exd5 {[%emt 0:00:06]} 5. Bg5 {[%emt 0:00:02]} Be7 {[%emt 0:00:14]} 6. e3 {[%emt 0:00:52]} h6 {[%emt 0:00:12]} 7. Bh4 {[%emt 0:00:17]} Bg4 {[%emt 0:00:18] D35: Queen's Gambit Declined: Exchange Variation.} 8. Qc2 {[%emt 0:08:17]} O-O {[%emt 0:00:55]} 9. Bd3 {[%emt 0:00:29]} c5 {[%emt 0:00:11] [#] The position is equal.} 10. f3 $146 {[%emt 0:04:24]} ({Predecessor:} 10. dxc5 Nbd7 11. Nge2 Nxc5 12. O-O Nxd3 13. Qxd3 Bxe2 14. Nxe2 Qb6 15. Nd4 g6 16. Rfd1 {½-½ Ivanov,A (2105)-Traub,I (2093) San Francisco Grey Memorial 2017 (7)}) 10... Be6 {[%emt 0:08:22]} 11. Nge2 {[%emt 0:02:33]} Nc6 {[%emt 0:00:28]} 12. a3 {[%emt 0:03:35]} Qd7 {[%emt 0:07:51]} ({Black should try} 12... cxd4 $11 13. Nxd4 Qb6) 13. dxc5 $1 $14 {[%emt 0:12:08]} Rac8 {[%emt 0:04:48]} 14. Rd1 {[%emt 0:10:08] Strongly threatening b4.} Rfe8 {[%emt 0:15:04]} (14... g5 $14 {was preferrable.}) 15. b4 {[%emt 0:16:13]} Ng4 {[%emt 0:12:19][%mdl 64] Discovered Attack} 16. Bf2 {[%emt 0:05:12]} Nxf2 {[%emt 0:07:05]} 17. Kxf2 {[%emt 0:00:03][%cal Oc3d5]} a5 {[%emt 0:00:11] [#]} (17... Bf6 $16) 18. Qb1 {[%emt 0:10:10]} (18. Nxd5 $1 $18 {[%cal Od5f6] Nf6+! would be deadly.} axb4 19. Nf6+ (19. Nxb4 Qc7 $16) 19... Bxf6 20. Bh7+ {[%mdl 64] Discovered Attack} Kh8 21. Rxd7 Bxd7 22. axb4) 18... Qc7 {[%emt 0:04:55]} 19. Nf4 {[%emt 0:03:17] Excellent horsemanship.} (19. g3 $16) 19... d4 {[%emt 0:03:41] Threatens to win with ...dxe3+.} 20. Nxe6 {[%emt 0:10:32]} dxe3+ {[%emt 0:00:34]} 21. Ke2 {[%emt 0:02:35]} Qe5 {[%emt 0:03:06] Chess con chili.} 22. Nd5 {[%emt 0:05:53] Bh7+ is the strong threat.} fxe6 {[%emt 0:06:25]} 23. Nxe7+ {[%emt 0:00:13]} (23. Nxe3 $11 Ra8 24. Be4) 23... Rxe7 {[%emt 0:00:10]} (23... Nxe7 $17 24. Qa1 Qg5) 24. Qa1 {[%emt 0:00:33] [#]} (24. Be4 $11) 24... Qg5 $1 $17 {[%emt 0:00:44] Black is more active.} ({Much less strong is} 24... axb4 25. Qxe5 Nxe5 26. axb4 $16 (26. Kxe3 bxa3 27. Ra1 Nxd3 $17)) 25. Be4 {[%emt 0:01:01]} (25. g3 $17 {might work better.}) 25... axb4 $19 {[%emt 0:04:18]} ({Not} 25... Qxg2+ 26. Kxe3 Qg5+ 27. Kf2 $17) 26. Bxc6 $2 {[%emt 0:00:49]} (26. g3 {is a better chance.}) 26... bxc6 {[%emt 0:01:40]} 27. axb4 {[%emt 0:00:30]} Qxg2+ {[%emt 0:00:20]} 28. Kxe3 {[%emt 0:00:02]} Rf8 {[%emt 0:02:42]} 29. Rhf1 {[%emt 0:00:25]} Ref7 {[%emt 0:00:25][%cal Rf7f3]} 30. f4 {[%emt 0:00:37]} Qh3+ {[%emt 0:05:45]} (30... Qxh2 $2 {is the wrong capture.} 31. Rf2 Qh5 32. Rdd2 $19) 31. Rf3 {[%emt 0:02:50]} Qxh2 {[%emt 0:00:05][%cal Rf7f4]} 32. Rd2 $2 {[%emt 0:01:12]} (32. Rh1 Qc2 33. Rc1) 32... Qh5 {[%emt 0:00:56][%cal Oe6e5] White must now prevent ...e5!} 33. Rg2 {[%emt 0:00:38] [#]} e5 $1 {[%emt 0:00:16][%cal Rf7f4][%mdl 512]} 34. Qc3 {[%emt 0:00:31]} (34. Qe1 Ra8) 34... Rxf4 {[%emt 0:00:53] Black mates.} 35. Rfg3 {[%emt 0:00:21]} Rf3+ {[%emt 0:00:39]} 36. Kd2 {[%emt 0:00:37]} Rd8+ {[%emt 0:00:24] An entertaining game by Szeberenyi.   Weighted Error Value: White=1.05/Black=0.18 (very precise)} 0-1